[Event "NJSK 2023 Meisjes B"]
[Site "Almelo, Netherlands"]
[Date "2023.05.01"]
[Round "2.4"]
[White "Ganeshram, Nirupa"]
[Black "Kulikova, Polina"]
[Result "0-1"]
[TimeControl "90min/40moves + 30min + 30sec/move"]
[WhiteElo "1629"]
[BlackElo "1589"]

1. e4 {[%clk 01:30:56]} c6 {[%clk 01:30:54]} {[%emt 00:00:07]} 2. Nc3 {[%clk
01:31:21]} {[%emt 00:00:05]} d5 {[%clk 01:31:13]} {[%emt 00:00:11]} 3. Nf3
{[%clk 01:31:39]} {[%emt 00:00:12]} Bg4 {[%clk 01:30:46]} {[%emt 00:00:57]} 4.
exd5 {[%clk 01:30:55]} {[%emt 00:01:14]} cxd5 {[%clk 01:30:51]} {[%emt
00:00:25]} 5. h3 {[%clk 01:30:12]} {[%emt 00:01:13]} Bxf3 {[%clk 01:30:38]}
{[%emt 00:00:43]} 6. Qxf3 {[%clk 01:30:23]} {[%emt 00:00:19]} e6 {[%clk
01:29:31]} {[%emt 00:01:36]} 7. b3 {[%clk 01:27:33]} {[%emt 00:03:21]} Nf6
{[%clk 01:29:19]} {[%emt 00:00:43]} 8. Bb2 {[%clk 01:27:23]} {[%emt 00:00:39]}
Be7 {[%clk 01:27:58]} {[%emt 00:01:51]} 9. Be2 {[%clk 01:24:42]} {[%emt
00:03:11]} Nc6 {[%clk 01:25:28]} {[%emt 00:03:00]} 10. a4 {[%clk 01:22:06]}
{[%emt 00:03:07]} a6 {[%clk 01:22:49]} {[%emt 00:03:09]} 11. Na2 {[%clk
01:09:58]} {[%emt 00:12:37]} Qc7 {[%clk 01:17:51]} {[%emt 00:05:27]} 12. O-O
{[%clk 01:08:58]} {[%emt 00:01:30]} O-O {[%clk 01:17:43]} {[%emt 00:00:39]} 13.
Rac1 {[%clk 01:03:07]} {[%emt 00:06:21]} Qd6 {[%clk 01:05:27]} {[%emt
00:12:46]} 14. Rfd1 {[%clk 00:56:04]} {[%emt 00:07:32]} Rac8 {[%clk 00:53:12]}
{[%emt 00:12:46]} 15. d4 {[%clk 00:53:45]} {[%emt 00:02:48]} Nb4 {[%clk
00:37:20]} {[%emt 00:16:23]} 16. Nxb4 {[%clk 00:41:30]} {[%emt 00:12:45]} Qxb4
{[%clk 00:37:36]} {[%emt 00:00:13]} 17. c4 {[%clk 00:40:13]} {[%emt 00:01:49]}
dxc4 {[%clk 00:36:08]} {[%emt 00:01:57]} 18. Bxc4 {[%clk 00:40:33]} {[%emt
00:00:10]} Rfd8 {[%clk 00:31:27]} {[%emt 00:05:10]} 19. Bc3 {[%clk 00:34:53]}
{[%emt 00:06:10]} Qb6 {[%clk 00:31:02]} {[%emt 00:00:54]} 20. Rd3 {[%clk
00:31:16]} {[%emt 00:04:09]} Nd5 {[%clk 00:26:42]} {[%emt 00:04:49]} 21. Bb2
{[%clk 00:28:52]} {[%emt 00:02:54]} Bf6 {[%clk 00:19:57]} {[%emt 00:07:14]} 22.
Rcd1 {[%clk 00:23:31]} {[%emt 00:05:52]} Qd6 {[%clk 00:16:48]} {[%emt
00:03:38]} 23. Qg4 {[%clk 00:17:25]} {[%emt 00:06:36]} Qe7 {[%clk 00:11:05]}
{[%emt 00:06:13]} 24. Rg3 {[%clk 00:13:38]} {[%emt 00:04:17]} g6 {[%clk
00:09:32]} {[%emt 00:02:03]} 25. Bc1 {[%clk 00:11:48]} {[%emt 00:02:20]} Nb6
{[%clk 00:07:09]} {[%emt 00:02:53]} 26. Rc3 {[%clk 00:04:37]} {[%emt 00:07:40]}
Nxc4 {[%clk 00:06:33]} {[%emt 00:01:06]} 27. bxc4 {[%clk 00:04:14]} {[%emt
00:00:53]} Qb4 {[%clk 00:05:51]} {[%emt 00:01:12]} 28. Rf3 {[%clk 00:03:55]}
{[%emt 00:00:49]} Bg7 {[%clk 00:04:46]} {[%emt 00:01:35]} 29. Qf4 {[%clk
00:03:57]} {[%emt 00:00:28]} Rd7 {[%clk 00:02:54]} {[%emt 00:02:22]} 30. c5
{[%clk 00:01:56]} {[%emt 00:02:31]} Qxa4 {[%emt 00:01:12]} 31. Rfd3 {[%clk
00:02:11]} {[%emt 00:00:14]} Rcd8 {[%clk 00:02:13]} {[%emt 00:00:31]} 32. Be3
{[%clk 00:02:10]} {[%emt 00:00:31]} e5 {[%clk 00:01:54]} {[%emt 00:00:49]} 33.
Qh4 {[%clk 00:02:21]} {[%emt 00:00:19]} exd4 {[%clk 00:01:58]} {[%emt
00:00:26]} 34. Bg5 {[%clk 00:02:40]} {[%emt 00:00:11]} Re8 {[%clk 00:01:57]}
{[%emt 00:00:31]} 35. Bf6 {[%clk 00:02:18]} {[%emt 00:00:52]} Bxf6 {[%clk
00:01:58]} {[%emt 00:00:28]} 36. Qxf6 {[%clk 00:02:45]} {[%emt 00:00:03]} Qa5
{[%clk 00:01:31]} {[%emt 00:00:57]} 37. c6 {[%clk 00:03:05]} {[%emt 00:00:10]}
bxc6 {[%clk 00:01:02]} {[%emt 00:00:59]} 38. Qxc6 {[%clk 00:03:31]} {[%emt
00:00:04]} Qb5 {[%clk 00:01:06]} {[%emt 00:00:24]} 39. Qf3 {[%clk 00:02:43]}
{[%emt 00:01:20]} Red8 {[%clk 00:01:10]} {[%emt 00:00:25]} 40. Qe4 {[%clk
00:02:43]} {[%emt 00:00:30]} Qd5 {[%clk 00:01:09]} {[%emt 00:00:32]} 41. Qe2
{[%clk 00:02:54]} {[%emt 00:00:19]} a5 {[%clk 00:01:35]} {[%emt 00:00:04]} 42.
Qd2 {[%clk 00:03:08]} {[%emt 00:00:16]} Qc5 {[%clk 00:01:30]} {[%emt 00:00:33]}
43. Rc1 {[%clk 00:03:21]} {[%emt 00:00:18]} Qb6 {[%clk 00:01:52]} {[%emt
00:00:08]} 44. Ra1 {[%clk 00:03:33]} {[%emt 00:00:18]} Qb4 {[%clk 00:02:03]}
{[%emt 00:00:20]} 45. Rxa5 {[%clk 00:03:02]} {[%emt 00:01:00]} Qxd2 {[%clk
00:01:49]} {[%emt 00:00:43]} 46. Rxd2 {[%clk 00:03:29]} {[%emt 00:00:04]} d3
{[%clk 00:02:12]} {[%emt 00:00:07]} 47. Ra3 {[%clk 00:03:43]} {[%emt 00:00:17]}
Kg7 {[%clk 00:02:27]} {[%emt 00:00:15]} 48. f3 {[%clk 00:04:07]} {[%emt
00:00:06]} f5 {[%clk 00:02:14]} {[%emt 00:00:43]} 49. g3 {[%clk 00:04:13]}
{[%emt 00:00:24]} Kf6 {[%emt 00:00:20]} 50. f4 {[%clk 00:04:35]} {[%emt
00:00:06]} g5 {[%clk 00:02:27]} {[%emt 00:00:30]} 51. Kf2 {[%clk 00:26:19]}
{[%emt 00:08:45]} gxf4 {[%clk 00:30:41]} {[%emt 00:02:16]} 52. gxf4 {[%clk
00:26:29]} {[%emt 00:00:20]} Kg6 {[%emt 00:01:42]} 53. Kg3 Kh5 {[%clk
00:29:37]} {[%emt 00:00:43]} 54. Ra5 {[%clk 00:26:26]} {[%emt 00:00:43]} Rd5
{[%clk 00:29:35]} {[%emt 00:00:31]} 55. Ra3 {[%clk 00:25:18]} {[%emt 00:01:39]}
R8d7 {[%clk 00:27:42]} {[%emt 00:02:23]} 56. Kh2 {[%clk 00:22:43]} {[%emt
00:03:05]} Kh4 {[%clk 00:23:21]} {[%emt 00:04:51]} 57. Ra6 {[%clk 00:21:11]}
{[%emt 00:02:03]} R7d6 {[%clk 00:22:42]} {[%emt 00:01:08]} 58. Ra4 {[%clk
00:19:43]} {[%emt 00:01:57]} Rc6 {[%clk 00:19:04]} {[%emt 00:04:05]} 59. Ra7
{[%clk 00:17:40]} {[%emt 00:02:36]} h6 {[%clk 00:18:06]} {[%emt 00:01:28]} 60.
Raa2 {[%clk 00:17:24]} {[%emt 00:00:46]} Rg6 {[%clk 00:15:08]} {[%emt
00:03:27]} 61. Kh1 {[%clk 00:15:42]} {[%emt 00:02:13]} Rg3 {[%clk 00:14:12]}
{[%emt 00:01:25]} 62. Kh2 {[%clk 00:15:55]} {[%emt 00:00:18]} Rxh3+ {[%clk
00:14:02]} {[%emt 00:00:41]} 63. Kg2 {[%clk 00:16:22]} {[%emt 00:00:03]} Kg4
{[%clk 00:13:04]} {[%emt 00:01:27]} 64. Rf2 {[%clk 00:14:47]} {[%emt 00:02:04]}
Rg3+ {[%clk 00:12:59]} {[%emt 00:00:36]} 65. Kh2 {[%clk 00:13:53]} {[%emt
00:01:24]} Rf3 {[%clk 00:13:01]} {[%emt 00:00:27]} 66. Rg2+ {[%clk 00:14:20]}
{[%emt 00:00:04]} Kxf4 {[%clk 00:13:10]} {[%emt 00:00:20]} 67. Ra4+ {[%clk
00:14:45]} {[%emt 00:00:06]} Ke3 {[%clk 00:13:11]} {[%emt 00:00:27]} 68. Ra3
{[%clk 00:15:07]} {[%emt 00:00:10]} Rf2 {[%clk 00:13:23]} {[%emt 00:00:18]} 69.
Rxf2 {[%clk 00:15:24]} {[%emt 00:00:13]} Kxf2 {[%clk 00:13:45]} {[%emt
00:00:09]} 70. Ra1 {[%clk 00:15:18]} {[%emt 00:00:36]} d2 {[%clk 00:13:03]}
{[%emt 00:01:12]} 0-1

[Event "NJSK 2023 Meisjes B"]
[Site "Almelo, Netherlands"]
[Date "2023.05.01"]
[Round "2.5"]
[White "Knobbe, Elise"]
[Black "Yildirim, Azra"]
[Result "0-1"]
[TimeControl "90min/40moves + 30min + 30sec/move"]
[WhiteElo "1584"]
[BlackElo "1275"]

1. c4 {[%clk 01:30:57]} {[%emt 00:00:02]} e5 {[%clk 01:30:44]} {[%emt
00:00:17]} 2. Nc3 {[%clk 01:31:22]} {[%emt 00:00:05]} Nc6 {[%clk 01:31:00]}
{[%emt 00:00:15]} 3. g3 {[%clk 01:31:33]} {[%emt 00:00:19]} Nf6 {[%clk
01:29:34]} {[%emt 00:01:56]} 4. Bg2 {[%clk 01:31:49]} {[%emt 00:00:14]} Bc5
{[%clk 01:29:11]} {[%emt 00:00:54]} 5. e3 {[%clk 01:31:40]} {[%emt 00:00:38]}
O-O {[%clk 01:27:08]} {[%emt 00:02:33]} 6. Nge2 {[%clk 01:30:53]} {[%emt
00:01:16]} Re8 {[%clk 01:18:53]} {[%emt 00:08:47]} 7. d3 {[%clk 01:28:02]}
{[%emt 00:03:21]} d6 {[%clk 01:15:12]} {[%emt 00:04:11]} 8. O-O {[%clk
01:24:43]} {[%emt 00:03:48]} Ne7 {[%clk 01:09:01]} {[%emt 00:06:42]} 9. a3
{[%clk 01:14:08]} {[%emt 00:11:05]} a5 {[%clk 01:03:46]} {[%emt 00:05:45]} 10.
b3 {[%clk 01:10:00]} {[%emt 00:04:38]} Ng6 {[%clk 00:59:52]} {[%emt 00:04:23]}
11. Bb2 {[%clk 01:06:47]} {[%emt 00:03:42]} c6 {[%clk 00:56:48]} {[%emt
00:03:34]} 12. d4 {[%clk 00:57:48]} {[%emt 00:09:30]} Bb6 {[%clk 00:50:45]}
{[%emt 00:06:33]} 13. d5 {[%clk 00:47:04]} {[%emt 00:11:14]} e4 {[%clk
00:43:20]} {[%emt 00:07:55]} 14. dxc6 {[%clk 00:43:12]} {[%emt 00:04:22]} bxc6
{[%clk 00:42:25]} {[%emt 00:01:25]} 15. Nd4 {[%clk 00:37:56]} {[%emt 00:05:46]}
Bg4 {[%clk 00:32:04]} {[%emt 00:10:51]} 16. Qd2 {[%clk 00:35:19]} {[%emt
00:03:07]} Qd7 {[%clk 00:30:31]} {[%emt 00:02:03]} 17. Na4 {[%clk 00:27:07]}
{[%emt 00:08:43]} Bc5 {[%clk 00:26:53]} {[%emt 00:04:09]} 18. Bc3 {[%clk
00:21:21]} {[%emt 00:06:15]} Bxd4 {[%clk 00:17:33]} {[%emt 00:09:49]} 19. Bxd4
{[%clk 00:19:47]} {[%emt 00:02:04]} Qf5 {[%clk 00:17:01]} {[%emt 00:01:02]} 20.
b4 {[%clk 00:14:12]} {[%emt 00:06:05]} axb4 {[%clk 00:14:54]} {[%emt 00:02:37]}
21. axb4 {[%clk 00:14:23]} {[%emt 00:00:19]} Rad8 {[%clk 00:14:27]} {[%emt
00:00:56]} 22. Bxf6 {[%clk 00:11:09]} {[%emt 00:03:44]} gxf6 {[%clk 00:13:32]}
{[%emt 00:01:25]} 23. Qc2 {[%clk 00:09:11]} {[%emt 00:02:27]} Bh3 {[%clk
00:11:50]} {[%emt 00:02:12]} 24. Nb2 {[%clk 00:06:24]} {[%emt 00:03:17]} Bxg2
{[%clk 00:09:19]} {[%emt 00:03:01]} 25. Kxg2 {[%clk 00:06:28]} {[%emt
00:00:27]} Qg4 {[%clk 00:07:26]} {[%emt 00:02:23]} 26. f4 {[%clk 00:04:09]}
{[%emt 00:02:49]} exf3+ {[%clk 00:05:35]} {[%emt 00:02:22]} 27. Kf2 {[%clk
00:03:43]} {[%emt 00:00:56]} Ne5 {[%clk 00:04:47]} {[%emt 00:01:18]} 28. Rh1
{[%clk 00:02:08]} {[%emt 00:02:04]} Qh3 {[%clk 00:03:50]} {[%emt 00:01:27]} 29.
Rag1 {[%clk 00:01:57]} {[%emt 00:00:41]} Ng4+ {[%clk 00:02:47]} {[%emt
00:01:33]} 30. Kxf3 {[%clk 00:01:45]} {[%emt 00:00:42]} Rxe3+ {[%clk 00:03:01]}
{[%emt 00:00:16]} 31. Kf4 {[%clk 00:02:10]} {[%emt 00:00:06]} Rde8 {[%clk
00:02:21]} {[%emt 00:01:10]} 32. Nd1 {[%clk 00:01:46]} {[%emt 00:00:54]} Qh6+
{[%clk 00:01:57]} {[%emt 00:00:54]} 33. Kxg4 {[%clk 00:01:09]} {[%emt
00:01:07]} R8e4+ {[%clk 00:02:21]} {[%emt 00:00:07]} 34. Kf5 {[%clk 00:01:07]}
{[%emt 00:00:31]} Qg5# {[%clk 00:02:34]} {[%emt 00:00:16]} 0-1

[Event "NJSK 2023 Meisjes B"]
[Site "Almelo, Netherlands"]
[Date "2023.05.01"]
[Round "2.6"]
[White "Oostinga, Elisa"]
[Black "Luijkx, Dagmar"]
[Result "1/2-1/2"]
[TimeControl "90min/40moves + 30min + 30sec/move"]
[WhiteElo "1034"]
[BlackElo "1559"]

1. e4 {[%clk 01:30:56]} {[%emt 00:00:03]} e6 {[%clk 01:30:59]} {[%emt
00:00:02]} 2. d4 {[%clk 01:31:14]} {[%emt 00:00:12]} d5 {[%clk 01:31:27]}
{[%emt 00:00:02]} 3. Nc3 {[%clk 01:31:22]} {[%emt 00:00:22]} Nf6 {[%clk
01:31:34]} {[%emt 00:00:24]} 4. Bg5 {[%clk 01:31:18]} {[%emt 00:00:33]} Be7
{[%clk 01:30:56]} {[%emt 00:01:08]} 5. e5 {[%clk 01:31:12]} {[%emt 00:00:36]}
Nfd7 {[%clk 01:31:08]} {[%emt 00:00:18]} 6. Bxe7 {[%clk 01:31:23]} {[%emt
00:00:20]} Qxe7 {[%clk 01:31:02]} {[%emt 00:00:36]} 7. a3 {[%clk 01:29:50]}
{[%emt 00:02:03]} c5 {[%clk 01:28:44]} {[%emt 00:02:47]} 8. Nf3 {[%clk
01:23:52]} {[%emt 00:06:28]} a6 {[%clk 01:26:03]} {[%emt 00:03:11]} 9. Qd2
{[%clk 01:16:25]} {[%emt 00:07:56]} Nc6 {[%clk 01:23:37]} {[%emt 00:02:58]} 10.
O-O-O {[%clk 01:07:43]} {[%emt 00:09:11]} cxd4 {[%clk 01:20:07]} {[%emt
00:04:00]} 11. Nxd4 {[%clk 01:05:28]} {[%emt 00:02:45]} Ndxe5 {[%clk 01:17:48]}
{[%emt 00:02:50]} 12. f4 {[%clk 00:58:13]} {[%emt 00:07:45]} Nd7 {[%clk
01:05:48]} {[%emt 00:12:31]} 13. Nxd5 {[%clk 00:51:32]} {[%emt 00:07:10]} Qd8
{[%clk 00:47:40]} {[%emt 00:18:38]} 14. Nc3 {[%clk 00:46:13]} {[%emt 00:05:49]}
Nxd4 {[%clk 00:41:16]} {[%emt 00:06:54]} 15. Qxd4 {[%clk 00:46:23]} {[%emt
00:00:20]} O-O {[%clk 00:41:27]} {[%emt 00:00:19]} 16. Be2 {[%clk 00:42:45]}
{[%emt 00:04:07]} Qf6 {[%clk 00:39:15]} {[%emt 00:02:42]} 17. g4 {[%clk
00:38:35]} {[%emt 00:04:40]} e5 {[%clk 00:37:06]} {[%emt 00:02:39]} 18. fxe5
{[%clk 00:37:00]} {[%emt 00:02:05]} Nxe5 {[%clk 00:34:24]} {[%emt 00:03:12]} 19.
h4 {[%clk 00:32:03]} {[%emt 00:05:27]} b5 {[%clk 00:28:39]} {[%emt 00:06:16]}
20. g5 {[%clk 00:27:08]} {[%emt 00:05:24]} Qe6 {[%clk 00:26:57]} {[%emt
00:02:13]} 21. Rhf1 {[%clk 00:25:02]} {[%emt 00:02:36]} Bb7 {[%clk 00:24:34]}
{[%emt 00:02:54]} 22. Rde1 {[%clk 00:22:17]} {[%emt 00:03:15]} Rfd8 {[%clk
00:22:47]} {[%emt 00:02:17]} 23. Qf4 {[%clk 00:20:57]} {[%emt 00:01:48]} Ng6
{[%clk 00:22:05]} {[%emt 00:01:13]} 24. Qf2 {[%clk 00:15:07]} {[%emt 00:06:19]}
Qd7 {[%clk 00:18:03]} {[%emt 00:04:32]} 25. Bd3 {[%clk 00:13:43]} {[%emt
00:01:55]} Rf8 {[%clk 00:15:15]} {[%emt 00:03:18]} 26. h5 {[%clk 00:12:10]}
{[%emt 00:02:02]} Nh8 {[%clk 00:14:16]} {[%emt 00:01:29]} 27. h6 {[%clk
00:10:04]} {[%emt 00:02:36]} f6 {[%clk 00:12:43]} {[%emt 00:02:04]} 28. Bf5
{[%clk 00:07:11]} {[%emt 00:03:23]} Qc6 {[%clk 00:10:25]} {[%emt 00:02:47]} 29.
Be6+ {[%clk 00:07:07]} {[%emt 00:00:34]} Nf7 {[%clk 00:10:37]} {[%emt
00:00:18]} 30. gxf6 {[%clk 00:05:38]} {[%emt 00:01:59]} g6 {[%clk 00:10:25]}
{[%emt 00:00:43]} 31. Nd5 {[%clk 00:05:41]} {[%emt 00:00:27]} Kh8 {[%clk
00:09:50]} {[%emt 00:01:05]} 32. Qg3 {[%clk 00:04:39]} {[%emt 00:01:17]} Rae8
{[%clk 00:09:11]} {[%emt 00:01:24]} 33. Ne7 {[%clk 00:02:49]} {[%emt 00:02:20]}
1/2-1/2

[Event "NJSK 2023 Meisjes B"]
[Site "Almelo, Netherlands"]
[Date "2023.05.01"]
[Round "2.7"]
[White "Wortman, Manixia"]
[Black "De Bruijne, Marlies"]
[Result "0-1"]
[TimeControl "90min/40moves + 30min + 30sec/move"]
[WhiteElo "1493"]
[BlackElo "945"]

1. e4 {[%clk 01:30:59]} c5 {[%clk 01:30:52]} {[%emt 00:00:08]} 2. c3 {[%emt
00:00:08]} e6 {[%clk 01:30:56]} {[%emt 00:00:24]} 3. d4 {[%clk 01:31:24]}
{[%emt 00:00:28]} d5 {[%clk 01:27:59]} {[%emt 00:03:28]} 4. exd5 {[%clk
01:27:47]} {[%emt 00:04:07]} exd5 {[%clk 01:25:06]} {[%emt 00:03:23]} 5. Nf3
{[%clk 01:27:32]} {[%emt 00:00:45]} Nf6 {[%clk 01:21:11]} {[%emt 00:04:26]} 6.
Be2 {[%clk 01:27:20]} {[%emt 00:00:41]} Bd6 {[%clk 01:19:21]} {[%emt 00:02:20]}
7. Bg5 {[%clk 01:24:27]} {[%emt 00:03:23]} O-O {[%clk 01:17:01]} {[%emt
00:02:50]} 8. Bxf6 {[%clk 01:18:17]} {[%emt 00:06:39]} Qxf6 {[%clk 01:17:03]}
{[%emt 00:00:29]} 9. dxc5 {[%clk 01:18:38]} {[%emt 00:00:10]} Bxc5 {[%clk
01:14:55]} {[%emt 00:02:36]} 10. Qxd5 {[%clk 01:18:52]} {[%emt 00:00:17]} Bb6
{[%clk 01:10:12]} {[%emt 00:05:12]} 11. O-O {[%clk 01:18:05]} {[%emt 00:01:17]}
Nc6 {[%clk 01:08:02]} {[%emt 00:02:40]} 12. Nbd2 {[%clk 01:16:27]} {[%emt
00:02:08]} Bg4 {[%clk 01:02:39]} {[%emt 00:05:53]} 13. Ne4 {[%clk 01:02:36]}
{[%emt 00:14:21]} Qe7 {[%clk 00:58:00]} {[%emt 00:05:08]} 14. Ng3 {[%clk
00:58:14]} {[%emt 00:04:52]} Rad8 {[%clk 00:52:30]} {[%emt 00:06:00]} 15. Qc4
{[%clk 00:56:18]} {[%emt 00:02:27]} Bxf3 {[%clk 00:46:46]} {[%emt 00:06:14]} 16.
Bxf3 {[%clk 00:56:15]} {[%emt 00:00:32]} Rc8 {[%clk 00:41:19]} {[%emt
00:05:58]} 17. Qb3 {[%clk 00:54:20]} {[%emt 00:02:25]} Rfe8 {[%clk 00:36:48]}
{[%emt 00:05:02]} 18. Rad1 {[%clk 00:53:19]} {[%emt 00:01:31]} Ne5 {[%clk
00:34:36]} {[%emt 00:02:42]} 19. Bd5 {[%clk 00:52:01]} {[%emt 00:01:48]} Ng4
{[%clk 00:29:55]} {[%emt 00:05:12]} 20. Nf5 {[%clk 00:44:53]} {[%emt 00:07:37]}
Qe5 {[%clk 00:24:11]} {[%emt 00:06:13]} 21. Bxf7+ {[%clk 00:44:08]} {[%emt
00:01:15]} Kh8 {[%clk 00:23:16]} {[%emt 00:01:27]} 22. Bxe8 {[%clk 00:35:57]}
{[%emt 00:08:40]} Qxh2# {[%clk 00:22:33]} {[%emt 00:00:42]} 0-1

[Event "NJSK 2023 Meisjes B"]
[Site "Almelo, Netherlands"]
[Date "2023.05.02"]
[Round "3.1"]
[White "Gergin, Isafara"]
[Black "Verheij, Dana"]
[Result "1-0"]
[TimeControl "90min/40moves + 30min + 30sec/move"]
[WhiteElo "1762"]
[BlackElo "1846"]

1. e4 {[%clk 01:30:58]} {[%emt 00:00:01]} c5 {[%clk 01:30:58]} {[%emt
00:00:02]} 2. Nf3 {[%clk 01:31:21]} {[%emt 00:00:06]} d6 {[%clk 01:31:19]}
{[%emt 00:00:10]} 3. d4 {[%clk 01:31:46]} {[%emt 00:00:05]} cxd4 {[%clk
01:30:13]} {[%emt 00:01:36]} 4. Nxd4 {[%clk 01:32:06]} {[%emt 00:00:09]} Nf6
{[%clk 01:30:39]} {[%emt 00:00:05]} 5. Nc3 {[%clk 01:32:15]} {[%emt 00:00:21]}
Nc6 {[%clk 01:31:00]} {[%emt 00:00:09]} 6. Be2 {[%clk 01:31:16]} {[%emt
00:01:27]} g6 {[%clk 01:31:03]} {[%emt 00:00:28]} 7. Be3 {[%clk 01:31:22]}
{[%emt 00:00:24]} Bg7 {[%clk 01:31:22]} {[%emt 00:00:11]} 8. O-O {[%clk
01:31:37]} {[%emt 00:00:14]} O-O {[%clk 01:27:53]} {[%emt 00:03:59]} 9. Qd2
{[%clk 01:30:03]} {[%emt 00:02:04]} Ng4 {[%clk 01:27:18]} {[%emt 00:01:06]} 10.
Bxg4 {[%clk 01:29:53]} {[%emt 00:00:39]} Bxg4 {[%clk 01:27:45]} {[%emt
00:00:04]} 11. f4 {[%clk 01:29:07]} {[%emt 00:01:15]} Bd7 {[%clk 01:23:42]}
{[%emt 00:04:34]} 12. Rad1 {[%clk 01:24:57]} {[%emt 00:04:40]} a6 {[%clk
01:18:31]} {[%emt 00:05:41]} 13. Nd5 {[%clk 01:13:02]} {[%emt 00:12:24]} Rc8
{[%clk 01:04:22]} {[%emt 00:14:39]} 14. Qf2 {[%clk 00:52:18]} {[%emt 00:21:15]}
f5 {[%clk 00:47:35]} {[%emt 00:17:16]} 15. exf5 {[%clk 00:41:50]} {[%emt
00:10:57]} Nxd4 {[%clk 00:43:10]} {[%emt 00:04:56]} 16. Bxd4 {[%clk 00:40:38]}
{[%emt 00:01:41]} Bxf5 {[%clk 00:43:19]} {[%emt 00:00:22]} 17. Bxg7 {[%clk
00:34:59]} {[%emt 00:06:09]} Kxg7 {[%clk 00:41:16]} {[%emt 00:02:34]} 18. Qd4+
{[%clk 00:33:45]} {[%emt 00:01:43]} Kg8 {[%clk 00:40:16]} {[%emt 00:01:27]} 19.
c4 {[%clk 00:30:32]} {[%emt 00:03:46]} e6 {[%clk 00:22:40]} {[%emt 00:18:06]}
20. Ne3 {[%clk 00:28:28]} {[%emt 00:02:33]} h5 {[%clk 00:18:12]} {[%emt
00:04:58]} 21. Qxd6 {[%clk 00:19:13]} {[%emt 00:09:46]} Qf6 {[%clk 00:16:41]}
{[%emt 00:02:00]} 22. Qd4 {[%clk 00:16:51]} {[%emt 00:02:52]} Qxd4 {[%clk
00:11:41]} {[%emt 00:05:30]} 23. Rxd4 {[%clk 00:17:07]} {[%emt 00:00:14]} Rfd8
{[%clk 00:11:05]} {[%emt 00:01:07]} 24. Rfd1 {[%clk 00:16:15]} {[%emt
00:01:22]} Rxd4 {[%clk 00:10:56]} {[%emt 00:00:39]} 25. Rxd4 {[%clk 00:16:38]}
{[%emt 00:00:06]} b5 {[%clk 00:09:29]} {[%emt 00:01:58]} 26. Nxf5 {[%clk
00:10:32]} {[%emt 00:06:35]} exf5 {[%clk 00:09:48]} {[%emt 00:00:11]} 27. b3
{[%clk 00:10:13]} {[%emt 00:00:49]} Kf7 {[%clk 00:07:57]} {[%emt 00:02:22]} 28.
Kf2 {[%clk 00:09:58]} {[%emt 00:00:45]} Ke6 {[%clk 00:07:34]} {[%emt 00:00:53]}
29. Ke3 {[%clk 00:09:37]} {[%emt 00:00:51]} Rc5 {[%clk 00:06:29]} {[%emt
00:01:35]} 30. Kd3 {[%clk 00:06:58]} {[%emt 00:03:09]} bxc4+ {[%clk 00:06:06]}
{[%emt 00:00:54]} 31. Rxc4 {[%clk 00:06:31]} {[%emt 00:00:56]} Ra5 {[%clk
00:05:58]} {[%emt 00:00:38]} 32. a4 {[%clk 00:04:15]} {[%emt 00:02:47]} Rd5+
{[%clk 00:05:15]} {[%emt 00:01:12]} 33. Kc3 {[%clk 00:03:56]} {[%emt 00:00:48]}
Rd1 {[%clk 00:05:16]} {[%emt 00:00:30]} 34. Rc6+ {[%clk 00:03:18]} {[%emt
00:01:08]} Kd5 {[%clk 00:05:38]} {[%emt 00:00:08]} 35. Rxa6 {[%clk 00:02:34]}
{[%emt 00:01:15]} h4 {[%clk 00:03:17]} {[%emt 00:02:51]} 36. Rxg6 {[%clk
00:02:18]} {[%emt 00:00:45]} Rg1 {[%clk 00:03:29]} {[%emt 00:00:17]} 37. Rh6
{[%clk 00:01:27]} {[%emt 00:01:22]} Rxg2 {[%clk 00:02:17]} {[%emt 00:01:42]} 38.
Rxh4 {[%clk 00:01:48]} {[%emt 00:00:09]} Ke4 {[%clk 00:02:27]} {[%emt
00:00:20]} 39. a5 {[%clk 00:01:35]} {[%emt 00:00:43]} Kf3 {[%clk 00:02:40]}
{[%emt 00:00:17]} 40. Rh6 {[%clk 00:00:44]} {[%emt 00:01:20]} Kxf4 {[%clk
00:02:55]} {[%emt 00:00:15]} 41. h4 {[%clk 00:00:35]} {[%emt 00:00:40]} Ra2
{[%clk 00:00:49]} {[%emt 00:02:36]} 42. b4 {[%clk 00:30:16]} {[%emt 00:00:49]}
Kg3 {[%clk 00:29:23]} {[%emt 00:01:56]} 43. h5 {[%clk 00:23:25]} {[%emt
00:07:21]} f4 {[%clk 00:29:23]} {[%emt 00:00:31]} 44. Rf6 {[%clk 00:23:18]}
{[%emt 00:00:36]} f3 {[%clk 00:29:44]} {[%emt 00:00:09]} 45. h6 {[%clk
00:22:02]} {[%emt 00:01:45]} f2 {[%clk 00:28:53]} {[%emt 00:01:21]} 46. h7
{[%clk 00:20:49]} {[%emt 00:01:42]} Ra3+ {[%clk 00:28:30]} {[%emt 00:00:54]} 47.
Kb2 {[%clk 00:18:57]} {[%emt 00:02:22]} Rf3 {[%clk 00:28:52]} {[%emt 00:00:08]}
48. Rxf3+ {[%clk 00:18:45]} {[%emt 00:00:41]} Kxf3 {[%clk 00:29:21]} {[%emt
00:00:02]} 49. h8=Q {[%clk 00:19:00]} {[%emt 00:00:15]} f1=Q {[%clk 00:29:40]}
{[%emt 00:00:10]} 50. Qf8+ {[%clk 00:19:23]} {[%emt 00:00:06]} Ke2 {[%clk
00:30:03]} {[%emt 00:00:08]} 51. Qxf1 {[%clk 00:19:44]} {[%emt 00:00:08]} 1-0